bitfinex/quotes_BTCUSD_20220115
["timestamp","ask_amount","ask_price","bid_price","bid_amount"]
[1642224200717,0.00020628,42897.0,42894.0,0.49072681]
[1642224200916,0.00020628,42897.0,42895.0,0.6658935]
[1642224201217,0.58837879,42903.0,42896.0,0.32618136]
[1642224201418,0.58837879,42903.0,42898.0,0.058275]
[1642224201616,0.00029223,42902.0,42898.0,0.058275]
[1642224202015,0.68585421,42905.0,42898.0,0.058275]
[1642224202016,0.00027504,42901.0,42898.0,0.058275]
[1642224202416,0.4154,42907.0,42898.0,0.058275]
[1642224202417,0.00025785,42900.0,42898.0,0.058275]
[1642224202617,0.00025785,42900.0,42899.0,0.0582749]
[1642224202818,0.4154,42907.0,42904.0,0.25140746]
[1642224203117,0.37680199,42906.0,42904.0,0.30967846]
[1642224203517,0.0003438,42905.0,42904.0,0.30967846]
[1642224203720,0.3767848,42905.0,42904.0,0.36794859]
[1642224204165,0.0003438,42905.0,42904.0,0.36794859]
[1642224204563,0.0003438,42905.0,42904.0,0.74438959]
[1642224204762,0.2303438,42905.0,42904.0,0.74438959]
[1642224205360,0.2303438,42905.0,42904.0,0.75438959]
[1642224205763,0.0003438,42905.0,42904.0,1.10029315]
[1642224206165,0.0003438,42905.0,42904.0,0.75438959]
[1642224206763,0.0003438,42905.0,42904.0,0.74438959]
[1642224207370,0.0003438,42905.0,42904.0,0.76438959]
[1642224208014,0.0003438,42905.0,42904.0,1.10337946]
[1642224208614,0.0003438,42905.0,42904.0,1.08337946]
[1642224209514,0.0003438,42905.0,42904.0,1.10337946]
[1642224211217,0.0003438,42905.0,42904.0,1.08337946]
[1642224211417,0.0003438,42905.0,42904.0,1.10337946]
[1642224212662,0.0003438,42905.0,42904.0,1.08337946]
[1642224213261,0.0003438,42905.0,42904.0,1.13337946]
[1642224213460,0.0003438,42905.0,42904.0,1.20337946]
[1642224213860,0.5956,42914.0,42904.0,1.20337946]
[1642224214059,0.5956,42914.0,42910.0,0.058255]
[1642224214260,0.284607,42915.0,42910.0,0.058255]
[1642224214261,0.00013752,42913.0,42912.0,0.05825463]
[1642224214663,0.00015471,42914.0,42912.0,0.05825463]
[1642224223908,0.00015471,42914.0,42912.0,0.53034869]
[1642224225510,0.00015471,42914.0,42912.0,0.53734869]
[1642224225910,0.00015471,42914.0,42913.0,0.24575276]
[1642224230328,0.00015471,42914.0,42912.0,0.53634869]
[1642224230729,0.00015471,42914.0,42912.0,0.53034869]
[1642224231430,0.00015471,42914.0,42912.0,0.53734869]
[1642224232634,0.00015471,42914.0,42912.0,0.59561069]
[1642224233032,0.00015471,42914.0,42912.0,0.58861069]
[1642224233435,0.00015471,42914.0,42912.0,0.59861069]
[1642224234663,0.00015471,42914.0,42912.0,0.58861069]
[1642224235465,0.00015471,42914.0,42912.0,0.59861069]
[1642224236069,0.00015471,42914.0,42912.0,0.65686469]
[1642224236867,0.00015471,42914.0,42912.0,0.64686469]
[1642224237168,0.00015471,42914.0,42913.0,0.80220382]
[1642224237367,0.001007,42915.0,42913.0,0.80220382]
[1642224237368,0.001007,42915.0,42913.0,0.45051115]
[1642224237568,0.001007,42915.0,42914.0,0.36256304]
[1642224237808,0.001007,42915.0,42914.0,0.79025517]
[1642224238007,0.58837879,42919.0,42916.0,0.058239]
[1642224238206,0.001,42924.0,42918.0,0.29912066]
[1642224238408,0.57667879,42925.0,42918.0,0.41559666]
[1642224238609,0.57667879,42925.0,42921.0,0.058238]
[1642224238807,0.0001719,42924.0,42921.0,0.058238]
[1642224239208,0.00015471,42923.0,42922.0,0.11647796]
[1642224239407,0.00015471,42923.0,42922.0,0.17883796]
[1642224239606,0.00015471,42923.0,42922.0,0.27883796]
[1642224240208,0.00015471,42923.0,42922.0,0.22883796]
[1642224240807,0.00015471,42923.0,42922.0,0.17883796]
[1642224241009,0.00015471,42923.0,42922.0,0.11647796]
[1642224241410,0.00015471,42923.0,42922.0,0.42382733]
[1642224241858,0.00015471,42923.0,42922.0,0.80026833]
[1642224242760,0.00015471,42923.0,42922.0,0.49291896]
[1642224243559,0.00015471,42923.0,42922.0,0.50891896]
[1642224243763,0.00015471,42923.0,42922.0,0.81671957]
[1642224244262,0.00015471,42923.0,42922.0,0.50891896]
[1642224244861,0.00015471,42923.0,42922.0,0.96501302]
[1642224245515,0.00015471,42923.0,42922.0,0.98801302]
[1642224246717,0.00015471,42923.0,42922.0,0.96501302]
[1642224247518,0.00015471,42923.0,42922.0,0.98101302]
[1642224248922,0.00015471,42923.0,42922.0,0.96501302]
[1642224249161,0.00015471,42923.0,42922.0,0.58857202]
[1642224249566,0.00015471,42923.0,42922.0,0.60657202]
[1642224250763,0.00015471,42923.0,42922.0,0.58857202]
[1642224251564,0.00015471,42923.0,42922.0,0.60557202]
[1642224252805,0.00015471,42923.0,42922.0,0.58857202]
[1642224253607,0.00015471,42923.0,42922.0,0.60657202]
[1642224253810,0.59296558,42927.0,42922.0,1.14450571]
[1642224254012,0.59296558,42927.0,42924.0,0.05823]
[1642224254210,0.59296558,42927.0,42925.0,0.73408713]
[1642224254408,0.78383339,42936.0,42926.0,0.35425103]
[1642224254609,0.78383339,42936.0,42929.0,0.11645569]
[1642224254808,0.0001719,42933.0,42930.0,0.33571256]
[1642224255207,0.00015471,42932.0,42930.0,0.33571256]
[1642224255610,0.00013752,42931.0,42930.0,0.33571256]
[1642224255812,0.00013752,42931.0,42930.0,0.51040056]
[1642224257072,0.00013752,42931.0,42930.0,0.81812092]
[1642224257274,0.00013752,42931.0,42930.0,1.19456192]
[1642224257773,0.00013752,42931.0,42930.0,1.15233392]
[1642224258175,0.00013752,42931.0,42930.0,0.44018036]
[1642224258373,0.00013752,42931.0,42930.0,0.13246]
[1642224258774,0.00013752,42931.0,42930.0,0.11646]
[1642224258975,0.00013752,42931.0,42929.0,0.4834858]
[1642224258976,0.00013752,42931.0,42929.0,0.11645569]
[1642224259275,0.00012033,42930.0,42929.0,0.11645569]
[1642224262208,0.00012033,42930.0,42929.0,0.58854975]
[1642224262410,0.00012033,42930.0,42929.0,1.2973035]
[1642224263710,0.00012033,42930.0,42929.0,1.49297635]
[1642224264964,0.00012033,42930.0,42929.0,1.47197635]
[1642224265566,0.00012033,42930.0,42929.0,1.0482156]
[1642224266766,0.00012033,42930.0,42929.0,0.6717746]
[1642224266969,0.00012033,42930.0,42929.0,0.53031891]
[1642224267567,0.00012033,42930.0,42929.0,0.54031891]
[1642224268606,0.00012033,42930.0,42929.0,0.48209406]
[1642224269004,0.00012033,42930.0,42929.0,0.53033405]
[1642224269604,0.00012033,42930.0,42929.0,0.54633405]
[1642224270906,0.00012033,42930.0,42929.0,0.53033405]
[1642224271856,0.00012033,42930.0,42929.0,0.48809406]
[1642224272858,0.00012033,42930.0,42929.0,0.47209406]
[1642224273659,0.00012033,42930.0,42929.0,0.48409406]
[1642224274060,0.00012033,42930.0,42929.0,0.54233305]
[1642224275516,0.59235988,42930.0,42929.0,0.53033305]
[1642224275715,0.59235988,42930.0,42929.0,0.54633305]
[1642224276617,0.59235988,42930.0,42929.0,0.48809406]
[1642224276817,0.59235988,42930.0,42929.0,0.47209406]
[1642224277116,0.5918737,42930.0,42929.0,0.47209406]
[1642224277619,0.5918737,42930.0,42929.0,0.48509406]
[1642224278016,0.5918737,42930.0,42929.0,0.54333421]
[1642224278817,0.5918737,42930.0,42929.0,0.47209406]
[1642224279680,0.5918737,42930.0,42929.0,0.48309406]
[1642224280884,0.5918737,42930.0,42929.0,0.47209406]
[1642224281683,0.5918737,42930.0,42929.0,0.48509406]
[1642224283520,0.5918737,42930.0,42929.0,0.47209406]
[1642224283718,0.5918737,42930.0,42929.0,0.48509406]
[1642224284521,0.69100534,42931.0,42929.0,0.48509406]
[1642224284919,0.69100534,42931.0,42929.0,0.47209406]
[1642224285722,0.59342499,42930.0,42929.0,0.48309406]
[1642224286320,0.32998112,42931.0,42929.0,0.48309406]
[1642224286563,0.69100534,42931.0,42929.0,0.48309406]
[1642224286964,0.69100534,42931.0,42929.0,0.47209406]
[1642224287765,0.69100534,42931.0,42930.0,0.31024264]
[1642224287965,0.69100534,42931.0,42929.0,0.48409406]
[1642224288169,0.69100534,42931.0,42929.0,0.69162103]
[1642224288764,0.59356582,42932.0,42931.0,0.30631931]
[1642224289966,0.00010314,42936.0,42933.0,0.05823411]
[1642224290409,8.595e-05,42935.0,42933.0,0.05823411]
[1642224290814,6.876e-05,42934.0,42933.0,0.05823411]
[1642224296087,6.876e-05,42934.0,42931.0,0.01]
[1642224297084,6.876e-05,42934.0,42929.0,0.58855466]
[1642224297685,6.876e-05,42934.0,42929.0,0.60255466]
[1642224298511,6.876e-05,42934.0,42930.0,0.058235]
[1642224299414,6.876e-05,42934.0,42929.0,0.58855466]
[1642224299811,6.876e-05,42934.0,42929.0,0.60355466]
[1642224301113,6.876e-05,42934.0,42929.0,0.58855466]
[1642224301318,6.876e-05,42934.0,42929.0,0.47209406]
[1642224301779,0.59363458,42934.0,42929.0,0.48209406]
[1642224302781,0.59356582,42932.0,42929.0,0.48209406]
[1642224302981,0.59356582,42932.0,42929.0,0.47209406]
[1642224303682,0.59356582,42932.0,42929.0,0.48509406]
[1642224305082,0.59356582,42932.0,42929.0,0.47209406]
[1642224305711,0.59356582,42932.0,42929.0,0.48609406]
[1642224306212,0.59363458,42934.0,42929.0,0.48609406]
[1642224306615,6.876e-05,42934.0,42929.0,0.48609406]
[1642224307013,6.876e-05,42934.0,42929.0,0.47209406]
[1642224307814,6.876e-05,42934.0,42929.0,0.48309406]
[1642224309062,6.876e-05,42934.0,42929.0,0.47209406]
[1642224309762,0.05831576,42934.0,42929.0,0.48209406]
[1642224310965,0.05831576,42934.0,42929.0,0.47209406]
[1642224311169,0.59356582,42933.0,42929.0,0.47209406]
[1642224311669,6.876e-05,42934.0,42929.0,0.47209406]
[1642224311865,6.876e-05,42934.0,42932.0,0.47209406]
[1642224313639,6.876e-05,42934.0,42932.0,0.53032934]
[1642224313838,6.876e-05,42934.0,42932.0,0.53432934]
[1642224314038,6.876e-05,42934.0,42932.0,0.98257992]
[1642224314640,6.876e-05,42934.0,42932.0,1.04080692]
[1642224315040,6.876e-05,42934.0,42932.0,0.97857992]
[1642224315242,6.876e-05,42934.0,42933.0,0.376441]
[1642224316793,6.876e-05,42934.0,42933.0,0.69218543]
[1642224316989,6.876e-05,42934.0,42933.0,0.86629543]
[1642224317188,6.876e-05,42934.0,42933.0,0.92452143]
[1642224317686,6.876e-05,42934.0,42933.0,1.04552143]
[1642224318688,0.001,42939.0,42935.0,0.116426]
[1642224318889,0.001,42939.0,42936.0,0.88905706]
[1642224319090,6.877e-05,42938.0,42936.0,0.93905706]
[1642224319293,6.877e-05,42938.0,42936.0,0.60108309]
[1642224319491,6.877e-05,42938.0,42937.0,0.50550835]
[1642224319690,6.877e-05,42938.0,42937.0,0.63502765]
[1642224319889,6.877e-05,42938.0,42937.0,1.0216703]
[1642224320090,6.877e-05,42938.0,42937.0,0.9216703]
[1642224321212,6.877e-05,42938.0,42937.0,1.30161789]
[1642224321815,6.877e-05,42938.0,42937.0,1.32661789]
[1642224322813,0.00031154,42939.0,42938.0,0.376441]
[1642224323014,0.00031154,42939.0,42938.0,0.71739362]
[1642224323813,0.00031154,42939.0,42938.0,0.74439362]
[1642224324962,0.00031154,42939.0,42938.0,0.71739362]
[1642224325862,0.00031154,42939.0,42938.0,0.74139362]
[1642224326767,0.00031154,42939.0,42938.0,0.400441]
[1642224327066,0.00031154,42939.0,42938.0,0.376441]
[1642224327563,0.00031154,42939.0,42938.0,0.84853506]
[1642224328616,0.00031154,42939.0,42938.0,1.16979955]
[1642224329721,0.58887736,42944.0,42938.0,0.87353506]
[1642224329917,0.58887736,42944.0,42942.0,0.41308073]
[1642224330118,0.5889805,42944.0,42942.0,0.41308073]
[1642224330519,0.00010314,42944.0,42942.0,0.11643986]
[1642224330719,0.00010314,42944.0,42942.0,0.05821986]
[1642224330920,0.00010314,42944.0,42942.0,0.11643986]
[1642224331564,0.00010314,42944.0,42943.0,0.33453182]
[1642224331966,0.00010314,42944.0,42942.0,0.05821986]
[1642224332369,8.595e-05,42943.0,42942.0,0.11643986]
[1642224333367,8.595e-05,42943.0,42942.0,0.05821986]
[1642224334369,8.595e-05,42943.0,42942.0,0.32249988]
[1642224335415,8.595e-05,42943.0,42942.0,0.62751308]
[1642224336516,8.595e-05,42943.0,42942.0,0.32249988]
[1642224338317,8.595e-05,42943.0,42942.0,0.63418174]
[1642224338716,8.595e-05,42943.0,42942.0,1.1062758]
[1642224339967,0.592293,42944.0,42942.0,1.1282758]
[1642224340165,0.592293,42944.0,42942.0,0.81659394]
[1642224341062,0.592293,42944.0,42942.0,0.79459394]
[1642224341363,0.592293,42944.0,42942.0,1.09950442]
[1642224341564,0.592293,42944.0,42943.0,0.30529906]
[1642224342064,0.69100534,42946.0,42943.0,0.30529906]
[1642224342264,0.4154,42949.0,42944.0,0.05821]
[1642224342667,8.595e-05,42948.0,42947.0,0.29707485]
[1642224346865,8.595e-05,42948.0,42945.0,0.13841609]
[1642224347266,6.876e-05,42947.0,42945.0,0.11641609]
[1642224347665,0.00013752,42951.0,42946.0,0.058213]
[1642224347870,0.00013752,42951.0,42948.0,0.05821272]
[1642224348067,0.00012033,42950.0,42948.0,0.05821272]
[1642224348467,0.00010314,42949.0,42948.0,0.05821272]
[1642224355768,0.00010314,42949.0,42948.0,0.53030678]
[1642224356167,0.00010314,42949.0,42948.0,0.47209406]
[1642224356969,0.69110848,42949.0,42948.0,0.47209406]
[1642224357924,0.69110848,42949.0,42948.0,0.49109406]
[1642224359225,0.00010314,42949.0,42948.0,0.49109406]
[1642224359827,0.59770381,42949.0,42948.0,0.48909406]
[1642224360428,0.00010314,42949.0,42948.0,0.48909406]
[1642224361226,0.00010314,42949.0,42948.0,0.47209406]
[1642224361868,0.00010314,42949.0,42948.0,0.49109406]
[1642224363274,0.00010314,42949.0,42948.0,0.47209406]
[1642224363970,0.00010314,42949.0,42948.0,0.49109406]
[1642224364972,0.00010314,42949.0,42948.0,0.80359051]
[1642224365173,0.00010314,42949.0,42948.0,0.78459051]
[1642224366117,0.00010314,42949.0,42948.0,0.80559051]
[1642224367319,0.00010314,42949.0,42948.0,0.49309406]
[1642224367720,0.00010314,42949.0,42948.0,0.47209406]
[1642224367917,0.00010314,42949.0,42948.0,0.81022504]
[1642224369070,0.00010314,42949.0,42948.0,0.78722504]
[1642224369871,0.00010314,42949.0,42948.0,0.81122504]
[1642224370472,0.00010314,42949.0,42948.0,0.49609406]
[1642224371175,0.00010314,42949.0,42948.0,0.47209406]
[1642224371972,0.00010314,42949.0,42948.0,0.49509406]
[1642224373322,0.00010314,42949.0,42948.0,0.47209406]
[1642224374124,0.00010314,42949.0,42948.0,0.49509406]
[1642224375426,0.00010314,42949.0,42948.0,0.77897792]
[1642224375826,0.00010314,42949.0,42948.0,0.47209406]
[1642224376027,0.00010314,42949.0,42948.0,0.49409406]
[1642224377170,8.99125625,42955.0,42949.0,0.47199092]
[1642224377368,8.99125625,42955.0,42950.0,0.05821149]
[1642224377569,8.595e-05,42954.0,42950.0,0.05821149]
[1642224377969,6.876e-05,42953.0,42950.0,0.05821149]
[1642224378169,6.876e-05,42953.0,42952.0,2.37359467]
[1642224379971,6.876e-05,42953.0,42952.0,2.38959467]
[1642224381222,6.876e-05,42953.0,42952.0,2.37359467]
[1642224382121,6.876e-05,42953.0,42952.0,2.38859467]
[1642224383323,6.876e-05,42953.0,42952.0,2.37359467]
[1642224384177,6.876e-05,42953.0,42952.0,2.38859467]
[1642224385577,6.876e-05,42953.0,42952.0,2.37359467]
[1642224385976,6.876e-05,42953.0,42952.0,2.38859467]
[1642224387278,6.876e-05,42953.0,42952.0,2.37359467]
[1642224388119,6.876e-05,42953.0,42952.0,2.38859467]
[1642224389324,6.876e-05,42953.0,42952.0,2.37359467]
[1642224390123,6.876e-05,42953.0,42952.0,2.38959467]
[1642224391572,6.876e-05,42953.0,42952.0,2.37359467]
[1642224391976,8.99125625,42955.0,42953.0,0.47192216]
[1642224393976,8.99125625,42955.0,42953.0,0.48392216]
[1642224394379,0.376441,42954.0,42953.0,0.48392216]
[1642224395325,0.376441,42954.0,42953.0,0.47192216]
[1642224396125,0.376441,42954.0,42953.0,0.48192216]
[1642224397331,0.376441,42954.0,42953.0,0.47192216]
[1642224397829,0.36122884,42954.0,42953.0,0.47192216]
[1642224398030,0.95832789,42954.0,42953.0,0.48692216]
[1642224398931,0.36122884,42954.0,42953.0,0.48692216]
[1642224399380,0.36122884,42954.0,42953.0,0.47192216]
[1642224399578,0.59122884,42954.0,42953.0,0.47192216]
[1642224399984,0.61822884,42954.0,42953.0,0.48692216]
[1642224400980,0.31798865,42954.0,42953.0,0.48692216]
[1642224401383,0.29098865,42954.0,42953.0,0.47192216]
[1642224402183,0.29098865,42954.0,42953.0,0.48692216]
[1642224403221,0.29098865,42954.0,42953.0,0.47192216]
[1642224404021,0.29098865,42954.0,42953.0,0.49392216]
[1642224405521,0.29098865,42954.0,42953.0,0.47192216]
[1642224406022,0.29098865,42954.0,42953.0,0.48892216]
[1642224407378,0.29098865,42954.0,42953.0,0.47192216]
[1642224408178,0.29098865,42954.0,42953.0,0.49092216]
[1642224408379,0.8932591,42954.0,42953.0,0.49092216]
[1642224409381,0.8932591,42954.0,42953.0,0.47192216]
[1642224410080,0.9202591,42954.0,42953.0,0.48892216]
[1642224410735,0.31798865,42954.0,42953.0,0.48892216]
[1642224410934,0.91526309,42954.0,42953.0,0.48892216]
[1642224411535,0.85427444,42954.0,42953.0,0.48892216]
[1642224411936,0.82727444,42954.0,42953.0,0.47192216]
[1642224412138,0.85227444,42954.0,42953.0,0.48792216]
[1642224412739,0.631257,42954.0,42953.0,0.48792216]
[1642224413237,0.606257,42954.0,42953.0,0.48792216]
[1642224413438,0.606257,42954.0,42953.0,0.47192216]
[1642224414176,0.630257,42954.0,42953.0,0.48892216]
[1642224415383,0.606257,42954.0,42953.0,0.47192216]
[1642224415779,0.23,42954.0,42953.0,0.47192216]
[1642224416178,0.253,42954.0,42953.0,0.48892216]
[1642224417280,0.23,42954.0,42953.0,0.47192216]
[1642224418227,0.23,42954.0,42953.0,0.48792216]
[1642224418626,0.82727444,42954.0,42953.0,0.48792216]
[1642224419427,1.20353144,42954.0,42953.0,0.47192216]
[1642224420228,1.22653144,42954.0,42953.0,0.48592216]
[1642224421572,1.20353144,42954.0,42953.0,0.47192216]
[1642224421973,0.82727444,42954.0,42953.0,0.47192216]
[1642224422173,0.85227444,42954.0,42953.0,0.48592216]
[1642224422973,0.85227444,42954.0,42953.0,2.28592216]
[1642224424075,0.88127444,42954.0,42953.0,2.29892216]
[1642224424374,0.85627444,42954.0,42953.0,2.28492216]
[1642224424575,0.259,42954.0,42953.0,2.28492216]
[1642224425421,0.23,42954.0,42953.0,2.27192216]
[1642224426224,0.23,42954.0,42953.0,2.28692216]
[1642224427425,0.23,42954.0,42953.0,2.27192216]
[1642224428026,0.606257,42954.0,42953.0,2.27192216]
[1642224428225,0.606257,42954.0,42953.0,2.28892216]
[1642224429375,0.606257,42954.0,42953.0,2.27192216]
[1642224429774,0.23,42954.0,42953.0,2.27192216]
[1642224430277,0.255,42954.0,42953.0,2.28792216]
[1642224430781,9.59457972,42955.0,42953.0,2.28792216]
[1642224430782,9.58853069,42955.0,42953.0,2.28792216]
[1642224430980,9.58853069,42955.0,42954.0,0.3478677]
[1642224431180,8.99125625,42955.0,42954.0,0.05]
[1642224431376,8.99125625,42955.0,42953.0,2.43140118]
[1642224431577,8.99125625,42955.0,42953.0,2.53140118]
[1642224431778,8.99125625,42955.0,42954.0,0.22839208]
[1642224431978,8.99125625,42955.0,42953.0,2.33140118]
[1642224432178,8.99125625,42955.0,42953.0,2.38040118]
[1642224432821,8.99125625,42955.0,42953.0,2.43859278]
[1642224433226,8.97855625,42955.0,42954.0,0.37750142]
[1642224433423,8.97855625,42955.0,42954.0,0.376257]
[1642224433825,8.97855625,42955.0,42954.0,0.68323536]
[1642224435028,8.97855625,42955.0,42954.0,0.426257]
[1642224435228,8.97855625,42955.0,42954.0,0.376257]
[1642224435429,8.97855625,42955.0,42954.0,0.68754477]
[1642224435830,8.97855625,42955.0,42954.0,0.376257]
[1642224436130,8.97855625,42955.0,42954.0,0.406257]
[1642224436331,8.97855625,42955.0,42954.0,0.71504969]
[1642224437179,8.97855625,42955.0,42954.0,0.81504969]
[1642224437382,8.97855625,42955.0,42954.0,0.78504969]
[1642224437983,8.97855625,42955.0,42954.0,0.476257]
[1642224438181,8.97855625,42955.0,42954.0,0.508257]
[1642224438783,8.97855625,42955.0,42954.0,0.81129944]
[1642224438988,8.51305278,42955.0,42954.0,0.91251148]
[1642224439184,8.74305278,42955.0,42954.0,0.91251148]
[1642224439383,8.74305278,42955.0,42954.0,1.35243364]
[1642224440187,8.74305278,42955.0,42954.0,1.38143364]
[1642224440422,8.74305278,42955.0,42954.0,1.0783912]
[1642224440621,8.74305278,42955.0,42954.0,1.38904674]
[1642224440826,8.74305278,42955.0,42954.0,1.0783912]
[1642224441222,8.74305278,42955.0,42954.0,1.28828038]
[1642224441421,8.74305278,42955.0,42954.0,1.25928038]
[1642224441625,8.74305278,42955.0,42954.0,1.35928038]
[1642224442221,8.74305278,42955.0,42954.0,1.39228038]
[1642224442822,8.72225588,42955.0,42954.0,1.39228038]
[1642224443021,8.72225588,42955.0,42954.0,1.29228038]
[1642224443421,8.72225588,42955.0,42954.0,1.26056478]
[1642224444083,0.59827444,42966.0,42954.0,2.59456478]
[1642224444287,0.59827444,42966.0,42965.0,0.81558634]
[1642224444682,0.59827444,42966.0,42965.0,0.91558634]
[1642224444683,0.59527444,42966.0,42965.0,0.91558634]
[1642224444882,0.59427444,42966.0,42965.0,1.72769492]
[1642224445084,0.59427444,42966.0,42965.0,1.39184334]
[1642224445483,0.69782018,42967.0,42965.0,1.39184334]
[1642224445484,0.59092018,42967.0,42966.0,0.376257]
[1642224445682,0.57592018,42967.0,42966.0,0.81338815]
[1642224445882,0.57416084,42967.0,42966.0,0.47753657]
[1642224446088,0.10883984,42967.0,42966.0,0.47753657]
[1642224446281,0.00024066,42967.0,42966.0,0.50653657]
[1642224446887,0.00024066,42967.0,42966.0,0.40653657]
[1642224447485,0.00024066,42967.0,42966.0,0.37753657]
[1642224448328,0.00024066,42967.0,42966.0,0.376257]
[1642224449225,0.00024066,42967.0,42966.0,0.37752313]
[1642224449430,0.00024066,42967.0,42966.0,0.42752313]
[1642224449629,0.23024066,42967.0,42966.0,1.19530492]
[1642224450028,0.23024066,42967.0,42966.0,0.79039702]
[1642224450227,0.23024066,42967.0,42966.0,0.82539702]
[1642224450628,0.00024066,42967.0,42966.0,0.82539702]
[1642224451577,0.00024066,42967.0,42966.0,0.79039702]
[1642224452178,0.00024066,42967.0,42966.0,0.82039702]
[1642224452582,0.00024066,42967.0,42966.0,0.456257]
[1642224452881,0.00024066,42967.0,42966.0,0.76006387]
[1642224453281,0.00024066,42967.0,42966.0,0.406257]
[1642224453481,0.00024066,42967.0,42966.0,0.376257]
[1642224453882,0.00024066,42967.0,42966.0,0.75239473]
[1642224454782,0.00024066,42967.0,42966.0,0.4274634]
[1642224454983,0.00024066,42967.0,42966.0,0.3774634]
[1642224456424,0.00024066,42967.0,42966.0,0.67893331]
[1642224458025,0.00024066,42967.0,42966.0,0.4274634]
[1642224458226,0.001,42972.0,42970.0,0.4706815]
[1642224458426,0.001,42972.0,42970.0,0.52885765]
[1642224458627,6.876e-05,42971.0,42970.0,0.52885765]
[1642224458827,6.876e-05,42971.0,42970.0,1.20442815]
[1642224459582,6.876e-05,42971.0,42970.0,0.8469385]
[1642224459781,6.876e-05,42971.0,42970.0,0.8419385]
[1642224460276,6.876e-05,42971.0,42970.0,0.8649385]
[1642224461477,6.876e-05,42971.0,42970.0,0.8419385]
[1642224462281,6.876e-05,42971.0,42970.0,0.8649385]
[1642224463424,6.876e-05,42971.0,42970.0,0.8419385]
[1642224464226,6.876e-05,42971.0,42970.0,0.8649385]
[1642224464627,6.876e-05,42971.0,42970.0,1.16530354]
[1642224465426,6.876e-05,42971.0,42970.0,1.14230354]
[1642224465925,6.876e-05,42971.0,42970.0,1.14352225]
[1642224466126,6.876e-05,42971.0,42970.0,1.34352225]
[1642224466326,6.876e-05,42971.0,42970.0,1.07515721]
[1642224466781,0.00206876,42975.0,42971.0,0.376257]
[1642224466985,0.00206876,42975.0,42972.0,0.116341]
[1642224467183,0.28696876,42981.0,42973.0,0.376257]
[1642224467386,1.23880464,42986.0,42972.0,0.158171]
[1642224467582,6.876e-05,42975.0,42972.0,0.158171]
[1642224467784,6.876e-05,42975.0,42973.0,0.376257]
[1642224468184,6.876e-05,42975.0,42973.0,0.67761103]
[1642224468383,6.876e-05,42975.0,42973.0,0.73578164]
[1642224468784,6.876e-05,42975.0,42973.0,0.43442761]
[1642224470325,6.876e-05,42975.0,42973.0,0.46242761]
[1642224471629,6.876e-05,42975.0,42973.0,0.43442761]
[1642224472327,6.876e-05,42975.0,42973.0,0.46242761]
[1642224473228,0.32083227,42982.0,42979.0,0.46561274]
[1642224473430,0.31583227,42982.0,42979.0,0.52378174]
[1642224473631,0.00010314,42981.0,42979.0,0.52378174]
[1642224473831,0.00010314,42981.0,42979.0,0.46561274]
[1642224474108,8.595e-05,42980.0,42979.0,0.46561274]
[1642224474308,8.595e-05,42980.0,42979.0,0.47761274]
[1642224474505,0.00012033,42980.0,42979.0,0.47761274]
[1642224475605,0.00012033,42980.0,42979.0,0.46561274]
[1642224476406,0.00012033,42980.0,42979.0,0.47961274]
[1642224477506,0.00012033,42980.0,42979.0,0.46561274]
[1642224478330,0.00012033,42980.0,42979.0,0.47961274]
[1642224479634,0.00012033,42980.0,42979.0,0.46561274]
[1642224480436,0.00012033,42980.0,42979.0,0.47861274]
[1642224481578,0.00012033,42980.0,42979.0,0.46561274]
[1642224482381,0.00012033,42980.0,42979.0,0.47861274]
[1642224483579,0.00012033,42980.0,42979.0,0.46561274]
[1642224484381,0.00012033,42980.0,42979.0,0.47861274]
[1642224485527,0.00012033,42980.0,42979.0,0.46561274]
[1642224486327,0.00012033,42980.0,42979.0,0.47761274]
[1642224487628,0.00012033,42980.0,42979.0,0.46561274]
[1642224488430,0.00012033,42980.0,42979.0,0.47861274]
[1642224489578,0.00012033,42980.0,42979.0,0.84186974]
[1642224490181,0.001,42983.0,42980.0,0.52365641]
[1642224491285,0.001,42983.0,42980.0,0.46549241]
[1642224492482,0.001,42983.0,42980.0,0.47349241]
[1642224493647,0.001,42983.0,42980.0,0.46549241]
[1642224494550,0.001,42983.0,42980.0,0.47349241]
[1642224495549,0.001,42983.0,42980.0,0.46549241]
[1642224496349,0.001,42983.0,42980.0,0.47449241]
[1642224497583,0.001,42983.0,42980.0,0.46549241]
[1642224498489,0.001,42983.0,42980.0,0.47549241]
[1642224499687,0.001,42983.0,42980.0,0.46549241]
[1642224500328,0.001,42983.0,42980.0,0.47549241]
[1642224501532,0.001,42983.0,42980.0,0.52365941]
[1642224502130,0.001,42983.0,42980.0,0.46549241]
[1642224502333,0.001,42983.0,42980.0,0.47449241]
[1642224503636,0.001,42983.0,42980.0,0.46549241]
[1642224504577,0.001,42983.0,42980.0,0.47549241]
[1642224505679,0.001,42983.0,42980.0,0.46549241]
[1642224506481,0.001,42983.0,42980.0,0.47749241]
[1642224507683,0.001,42983.0,42980.0,0.46549241]
[1642224508329,0.001,42983.0,42980.0,0.48449241]
[1642224509232,0.4154,42985.0,42984.0,0.46449241]
[1642224509532,0.791657,42985.0,42984.0,0.46449241]
[1642224510330,0.791657,42985.0,42984.0,0.46649241]
[1642224511593,0.791657,42985.0,42984.0,0.46449241]
[1642224512189,0.786657,42985.0,42984.0,0.46449241]
[1642224512389,0.786657,42985.0,42984.0,0.46749241]
[1642224513291,0.376257,42985.0,42984.0,0.46749241]
[1642224513492,0.31380464,42986.0,42984.0,0.46749241]
[1642224513690,0.31380464,42986.0,42984.0,0.46449241]
[1642224514490,0.31380464,42986.0,42984.0,0.47249241]
[1642224515530,0.31380464,42986.0,42984.0,0.46449241]
[1642224516334,0.31380464,42986.0,42984.0,0.47749241]
[1642224517734,0.31280464,42986.0,42984.0,0.46449241]
[1642224517935,0.30880464,42986.0,42984.0,0.46449241]
[1642224518336,0.30880464,42986.0,42984.0,0.47349241]
[1642224519618,0.30880464,42986.0,42984.0,0.46449241]
[1642224520519,0.30880464,42986.0,42984.0,0.47349241]
[1642224521622,0.30880464,42986.0,42984.0,0.46449241]
[1642224522424,0.30880464,42986.0,42984.0,0.47349241]
[1642224523626,0.30880464,42986.0,42984.0,0.46449241]
[1642224524429,0.30880464,42986.0,42984.0,0.47849241]
[1642224525827,0.30880464,42986.0,42984.0,0.46449241]
[1642224526580,0.002,42987.0,42984.0,0.47349241]
[1642224526780,0.002,42987.0,42984.0,0.53165341]
[1642224526983,6.876e-05,42986.0,42985.0,0.29826509]
[1642224527380,6.876e-05,42986.0,42984.0,0.53165341]
[1642224527779,6.876e-05,42986.0,42984.0,0.52265341]
[1642224528180,6.876e-05,42986.0,42985.0,0.2987437]
[1642224528380,6.876e-05,42986.0,42985.0,0.29995359]
[1642224528981,6.876e-05,42986.0,42985.0,0.00120989]
[1642224529483,6.876e-05,42986.0,42984.0,0.47349241]
[1642224529679,6.876e-05,42986.0,42984.0,0.46449241]
[1642224530535,6.876e-05,42986.0,42984.0,0.47749241]
[1642224531133,0.60895558,42988.0,42984.0,0.47749241]
[1642224531334,0.28228473,42988.0,42984.0,0.47749241]
[1642224532335,0.28228473,42988.0,42984.0,0.46449241]
[1642224532536,0.28228473,42988.0,42984.0,0.47649241]